Workbook

Sheet sheet1
A1: 连州市金桥社会服务有限公司 2026年招聘专项工作聘员（连州市人民检察院） 考试总成绩及进入体检考生名单
A5: 2026-02-26
A6: 序号 | B6: 姓名 | C6: 笔试成绩 | D6: 笔试成绩*50% | E6: 面试成绩 | F6: 面试成绩*50% | G6: 总成绩 | H6: 报考岗位 | I6: 职位排名 | J6: 是否进入体检 | K6: 备注
A7: 1 | B7: 成凯峰 | C7: 59.00 | D7: =C7*0.5 -> 29.50 | E7: 84.50 | F7: =E7*0.5 -> 42.25 | G7: =D7+F7 -> 71.75 | H7: 101 | I7: 1 | J7: 是
A8: 2 | B8: 陈镕榕 | C8: 73.00 | D8: =C8*0.5 -> 36.50 | E8: 69.50 | F8: =E8*0.5 -> 34.75 | G8: =D8+F8 -> 71.25 | H8: 101 | I8: 2 | J8: 是
A9: 3 | B9: 黄培权 | C9: 65.00 | D9: =C9*0.5 -> 32.50 | E9: 74.33 | F9: =E9*0.5 -> 37.17 | G9: =D9+F9 -> 69.67 | H9: 101 | I9: 3 | J9: 是
A10: 4 | B10: 缪美红 | C10: 61.00 | D10: =C10*0.5 -> 30.50 | E10: 77.50 | F10: =E10*0.5 -> 38.75 | G10: =D10+F10 -> 69.25 | H10: 101 | I10: 4 | J10: 是
A11: 5 | B11: 唐文滔 | C11: 67.00 | D11: =C11*0.5 -> 33.50 | E11: 71.00 | F11: =E11*0.5 -> 35.50 | G11: =D11+F11 -> 69.00 | H11: 101 | I11: 5 | J11: 是
A12: 6 | B12: 罗颖珊 | C12: 64.00 | D12: =C12*0.5 -> 32.00 | E12: 70.50 | F12: =E12*0.5 -> 35.25 | G12: =D12+F12 -> 67.25 | H12: 101 | I12: 6 | J12: 否
A13: 7 | B13: 肖泽雄 | C13: 64.00 | D13: =C13*0.5 -> 32.00 | E13: 69.50 | F13: =E13*0.5 -> 34.75 | G13: =D13+F13 -> 66.75 | H13: 101 | I13: 7 | J13: 否
A14: 8 | B14: 苏倩 | C14: 64.00 | D14: =C14*0.5 -> 32.00 | E14: 69.17 | F14: =E14*0.5 -> 34.59 | G14: =D14+F14 -> 66.59 | H14: 101 | I14: 8 | J14: 否
A15: 9 | B15: 李郡茜 | C15: 68.00 | D15: =C15*0.5 -> 34.00 | E15: 64.17 | F15: =E15*0.5 -> 32.09 | G15: =D15+F15 -> 66.09 | H15: 101 | I15: 9 | J15: 否
A16: 10 | B16: 欧阳子灵 | C16: 60.00 | D16: =C16*0.5 -> 30.00 | E16: 70.83 | F16: =E16*0.5 -> 35.42 | G16: =D16+F16 -> 65.42 | H16: 101 | I16: 10 | J16: 否
A17: 11 | B17: 黄记娟 | C17: 65.00 | D17: =C17*0.5 -> 32.50 | E17: 64.50 | F17: =E17*0.5 -> 32.25 | G17: =D17+F17 -> 64.75 | H17: 101 | I17: 11 | J17: 否
A18: 12 | B18: 刘雪梅 | C18: 62.00 | D18: =C18*0.5 -> 31.00 | E18: 54.67 | F18: =E18*0.5 -> 27.34 | G18: =D18+F18 -> 58.34 | H18: 101 | I18: 12 | J18: 否
A19: 13 | B19: 邓秋兰 | C19: 66.00 | D19: =C19*0.5 -> 33.00 | E19: 0.00 | F19: =E19*0.5 -> 0.00 | G19: =D19+F19 -> 33.00 | H19: 101 | I19: 13 | J19: 否 | K19: 缺考
A20: 14 | B20: 文婷 | C20: 63.00 | D20: =C20*0.5 -> 31.50 | E20: 0.00 | F20: =E20*0.5 -> 0.00 | G20: =D20+F20 -> 31.50 | H20: 101 | I20: 14 | J20: 否 | K20: 缺考
A21: 15 | B21: 韦美婷 | C21: 58.00 | D21: =C21*0.5 -> 29.00 | E21: 0.00 | F21: =E21*0.5 -> 0.00 | G21: =D21+F21 -> 29.00 | H21: 101 | I21: 15 | J21: 否 | K21: 缺考
